{"text_format":"1","workbook":"xlsx","n_sheets":12,"sheets":["Summary of scores (2)","Introduction","Instructions ","FAQs","Guidance for condoms","Programme Management","Programme Implementation","Programme Outcomes ","Summary of scores","Next steps","Bibliography","Acronyms"],"not_rendered":{"charts":6,"images":1,"macros":1,"external_links":0,"defined_names":27,"comments":1,"pivot_tables":0},"unopened":[],"bounds":{"document_bytes":16777216,"sheet_cells":100000,"rows_first":2000,"rows_last":500,"rows_between":2000,"halvings":0,"cell_chars":16384,"cell_head_chars":4096},"cells_cut":0,"cells_raw":0,"read":"whole","date_system":"1900"}

{"sheet":"Summary of scores (2)","index":0,"n_rows":142,"n_cols":6,"rows_kept":142,"cut":false,"hidden":true,"merged":[[109,2,141,2],[109,3,136,3],[137,3,141,3],[1,2,1,6],[68,2,74,2],[68,3,71,3],[72,3,73,3],[76,2,108,2],[93,3,97,3],[99,3,100,3],[101,3,108,3],[76,3,79,3],[80,3,82,3],[83,3,86,3],[87,3,89,3],[90,3,92,3],[74,3,75,3],[2,2,67,2],[2,3,23,3],[24,3,45,3],[46,3,67,3]]}
[]
[null,null,"Summary of scores"]
[null,null,"Prevention\nPackages","AGYW Prevention Package\n(HIGH Incidence Locations)",null,"Risk Assessment / Profiling"]
[null,null,null,null,null,"Male and female condoms and lubricants "]
[null,null,null,null,null,"HIV testing, treatment, counselling and support"]
[null,null,null,null,null,"Pre-exposure Prophylaxis"]
[null,null,null,null,null,"STI diagnosis & service integration"]
[null,null,null,null,null,"SRH services incl. contraceptive mix"]
[null,null,null,null,null,"GBV services, post-rape care "]
[null,null,null,null,null,"Antenatal care (ANC) including PMTCT"]
[null,null,null,null,null,"Clinical service package for sex partners of AGYW"]
[null,null,null,null,null,"Accessible services"]
[null,null,null,null,null,"Youth-friendly/Acceptable services"]
[null,null,null,null,null,"Sensitisation"]
[null,null,null,null,null,"School-based prevention campaigns"]
[null,null,null,null,null,"Comprehensive sexuality education"]
[null,null,null,null,null,"Keeping girls in school"]
[null,null,null,null,null,"Community Mobilisation & demand generation"]
[null,null,null,null,null,"Increasing access to justice (policy and legal) "]
[null,null,null,null,null,"Gender-based violence prevention and management "]
[null,null,null,null,null,"Social protection & Social Asset Building"]
[null,null,null,null,null,"Economic Empowerment & Incentives"]
[null,null,null,null,null,"Increasing access to education for young women "]
[null,null,null,null,null,"Transforming harmful cultural and gender norms through community platforms"]
[null,null,null,"AGYW Prevention Package\n(VERY HIGH Incidence Locations)",null,"Risk Assessment / Profiling"]
[null,null,null,null,null,"Male and female condoms and lubricants "]
[null,null,null,null,null,"HIV testing, treatment, counselling and support"]
[null,null,null,null,null,"Pre-exposure Prophylaxis"]
[null,null,null,null,null,"STI diagnosis & service integration"]
[null,null,null,null,null,"SRH services incl. contraceptive mix"]
[null,null,null,null,null,"GBV services, post-rape care "]
[null,null,null,null,null,"Antenatal care (ANC) including PMTCT"]
[null,null,null,null,null,"Clinical service package for sex partners of AGYW"]
[null,null,null,null,null,"Accessible services"]
[null,null,null,null,null,"Youth-friendly/Acceptable services"]
[null,null,null,null,null,"Sensitisation"]
[null,null,null,null,null,"School-based prevention campaigns"]
[null,null,null,null,null,"Comprehensive sexuality education"]
[null,null,null,null,null,"Keeping girls in school"]
[null,null,null,null,null,"Community Mobilisation & demand generation"]
[null,null,null,null,null,"Increasing access to justice (policy and legal) "]
[null,null,null,null,null,"Gender-based violence prevention and management "]
[null,null,null,null,null,"Social protection & Social Asset Building"]
[null,null,null,null,null,"Economic Empowerment & Incentives"]
[null,null,null,null,null,"Increasing access to education for young women "]
[null,null,null,null,null,"Transforming harmful cultural and gender norms through community platforms"]
[null,null,null,"AGYW Prevention Package\n(EXTREMELY HIGH Incidence Locations)",null,"Risk Assessment / Profiling"]
[null,null,null,null,null,"Male and female condoms and lubricants "]
[null,null,null,null,null,"HIV testing, treatment, counselling and support"]
[null,null,null,null,null,"Pre-exposure Prophylaxis"]
[null,null,null,null,null,"STI diagnosis & service integration"]
[null,null,null,null,null,"SRH services incl. contraceptive mix"]
[null,null,null,null,null,"GBV services, post-rape care "]
[null,null,null,null,null,"Antenatal care (ANC) including PMTCT"]
[null,null,null,null,null,"Clinical service package for sex partners of AGYW"]
[null,null,null,null,null,"Accessible services"]
[null,null,null,null,null,"Youth-friendly/Acceptable services"]
[null,null,null,null,null,"Sensitisation"]
[null,null,null,null,null,"School-based prevention campaigns"]
[null,null,null,null,null,"Comprehensive sexuality education"]
[null,null,null,null,null,"Keeping girls in school"]
[null,null,null,null,null,"Community Mobilisation & demand generation"]
[null,null,null,null,null,"Increasing access to justice (policy and legal) "]
[null,null,null,null,null,"Gender-based violence prevention and management "]
[null,null,null,null,null,"Social protection & Social Asset Building"]
[null,null,null,null,null,"Economic Empowerment & Incentives"]
[null,null,null,null,null,"Increasing access to education for young women "]
[null,null,null,null,null,"Transforming harmful cultural and gender norms through community platforms"]
[null,null,"Programme Management","1. Leadership & coordination",null,"National Strategy and Strategic Plan"]
[null,null,null,null,null,"National Technical working group (TWG) for AGYW/Youth Prevention"]
[null,null,null,null,null,"Accountability"]
[null,null,null,null,null,"National and Sub-National plans"]
[null,null,null,"2. Strategy, Policy & regulation",null,"Policies"]
[null,null,null,null,null,"Guidelines"]
[null,null,null,"3. Financing",null,"Costing"]
[null,null,null,null,null,"Budget planning"]
[null,null,"Programme Implementation","4. Step One: Targeting & planning",null,"Demographic assessment & disaggregation"]
[null,null,null,null,null,"Needs assessment"]
[null,null,null,null,null,"Characterisation of male partners of AGYW"]
[null,null,null,null,null,"Target setting"]
[null,null,null,"5. Step Two: Population size estimation by HIV Incidence Level",null,"AGYW PSE - high incidence settings"]
[null,null,null,null,null,"AGYW PSE - very high incidence settings"]
[null,null,null,null,null,"AGYW PSE - extremely incidence settings"]
[null,null,null,"6. Step Three: Identify the groups \"most vulnerable\" or \"most in need\"",null,"Epidemiological assessment (sero-prevalence survey & determinants of risk)"]
[null,null,null,null,null,"Behavoural risk factors"]
[null,null,null,null,null,"Biological risk factors"]
[null,null,null,null,null,"Structural risk factors"]
[null,null,null,"7. Step Four: Review available programme elements and their coverage",null,"Health sector platforms (facilities, service delivery points)"]
[null,null,null,null,null,"Education platforms (schools, universities)"]
[null,null,null,null,null,"Community platforms (NGOs, CSOs)"]
[null,null,null,"8. Step Five: Develop a Results Framework (Theory of Change)",null,"Define & prioritise HIV prevention packages per applicable incidence category"]
[null,null,null,null,null,"Include Programmatic coverage targets"]
[null,null,null,null,null,"Include Cross-cutting activities & complementary action"]
[null,null,null,"9. Step Six: Define/Develop Delivery Systems",null,"Develop/ensure health platforms"]
[null,null,null,null,null,"Develop/ensure education platforms"]
[null,null,null,null,null,"Develop/ensure Community platforms"]
[null,null,null,null,null,"Peer outreach educators (POE), Peer testers and Community Health Workers (CHWs)"]
[null,null,null,null,null,"Meaningful engagement of affected communities in leadership & coordination"]
[null,null,null,"10. Step Seven: Define Management Mechanism",null,"National & Sub National Management systems"]
[null,null,null,"11. Step Eight: Develop Costed Operational Plan",null,"Operational plan"]
[null,null,null,null,null,"Available Resources"]
[null,null,null,"12. Step Nine: Develop M&E Plan",null,"Routine monitoring"]
[null,null,null,null,null,"Referral system tracking"]
[null,null,null,null,null,"Quality assessment"]
[null,null,null,null,null,"Surveillance "]
[null,null,null,null,null,"Data flow"]
[null,null,null,null,null,"Data for decision making"]
[null,null,null,null,null,"The use of Unique Identifier Code for program monitoring"]
[null,null,null,null,null,"Budget monitoring"]
[null,null,"Programme Outcomes","13. Outcomes for AGYW Prevention",null,"Number of new HIV infections per 1000 uninfected population"]
[null,null,null,null,null,"Number and % of people living with HIV "]
[null,null,null,null,null,"Number of AIDS related deaths per 100,000 population"]
[null,null,null,null,null,"Percentage of (estimated) people living with HIV who have been tested HIV-positive"]
[null,null,null,null,null,"Percentage of adults and children with HIV, known to be on treatment 12 months after initiation of antiretroviral therapy"]
[null,null,null,null,null,"Percentage of people living with HIV and on ART who are virologically suppressed"]
[null,null,null,null,null,"Percentage of ever-married or partnered women aged 15-49 who experienced physical or sexual violence from a male intimate partner in the past 12 months"]
[null,null,null,null,null,"Percentage of sexually active young women age 15 - 24 who had multiple sexual partners."]
[null,null,null,null,null,"Percentage of sexually active men age 15-49 who had multiple sexual partners."]
[null,null,null,null,null,"Knows a formal source for condoms (young women 15-24)"]
[null,null,null,null,null,"Knows a formal source for condoms (young men 15-24)"]
[null,null,null,null,null,"Condom use with non-regular partners (young women, 15-24)"]
[null,null,null,null,null,"Condom use with non regular partners (young men, 15-24)"]
[null,null,null,null,null,"Percentage of females age 15-24 who report unintended pregnancy of of current pregnancy or most recent births (teen pregnancy)"]
[null,null,null,null,null,"Percentage of youth neither in employment nor in education or training (NEET)"]
[null,null,null,null,null,"Percentage of females aged 15 - 24 who dropped out of school in the last year"]
[null,null,null,null,null,"Percentage of young people aged 10–24 years reached by life skills–based HIV education in schools"]
[null,null,null,null,null,"Percentage of priority districts (administrative areas) with dedicated programs for young women & male partners (full package) "]
[null,null,null,null,null,"Percentage of adolescent girls and young women in high-HIV incidence communities reached with two interventions in the past three months"]
[null,null,null,null,null,"Percentage of adolescent girls and young women (AGYW) who received PEP"]
[null,null,null,null,null,"PrEP Indicator - tbc"]
[null,null,null,null,null,"SRHR access indicator(s) - tbc"]
[null,null,null,null,null,"Number of AGYW who received GBV related services (e.g. referral for legal or medical care e.g. PEP, post violence care & support services)"]
[null,null,null,null,null,"Percentage of AGYW who received livelihood support (cash transfer or other economic empowerment approaches)"]
[null,null,null,null,null,"Percentage of AGYW who reached with \"keeping girls in school\" initiatives (including education subsidy and others)"]
[null,null,null,null,null,"Number of medical male circumcisions performed according to national standards"]
[null,null,null,null,null,"Percentage of people living with HIV that initiated ART with a CD4 count of <200 cells/mm3"]
[null,null,null,null,null,"Percentage of people living with HIV and on antiretroviral therapy who have a suppressed viral load at 12 months (<1000 copies/ml)"]
[null,null,null,"14. Sustainability",null,"Resource mobilisation and financing"]
[null,null,null,null,null,"Domestic resourcing"]
[null,null,null,null,null,"Social contracting"]
[null,null,null,null,null,"Capacity building and TA Plan"]
[null,null,null,null,null,"Sustainability plan and transition roadmap"]

{"sheet":"Introduction","index":1,"n_rows":2,"n_cols":3,"rows_kept":2,"cut":false,"hidden":false,"merged":[[1,2,1,22]]}
[]
[null,null,"What are the HIV Prevention Self-Assessment Tools (PSAT)?"]

{"sheet":"Instructions ","index":2,"n_rows":3,"n_cols":3,"rows_kept":3,"cut":false,"hidden":false,"merged":[[2,2,2,17]]}
[]
[]
[null,null,"How to complete the PSAT"]

{"sheet":"FAQs","index":3,"n_rows":2,"n_cols":3,"rows_kept":2,"cut":false,"hidden":false,"merged":[[1,2,1,22]]}
[]
[null,null,"Frequently Asked Questions"]

{"sheet":"Guidance for condoms","index":4,"n_rows":2,"n_cols":3,"rows_kept":2,"cut":false,"hidden":false,"merged":[[1,2,1,22]]}
[]
[null,null,"Strengthened national condom and related behavioural change programmes"]

{"sheet":"Programme Management","index":5,"n_rows":91,"n_cols":16,"rows_kept":91,"cut":false,"hidden":false,"merged":[[37,2,41,2],[37,9,41,9],[42,2,46,2],[42,9,46,9],[1,2,1,9],[3,3,3,4],[5,2,16,2],[5,9,16,9],[17,2,18,2],[19,9,23,9],[24,2,29,2],[24,9,29,9],[30,2,35,2],[30,9,35,9],[19,2,23,2],[17,9,18,9],[47,2,51,2],[48,9,51,9],[52,2,56,2],[58,2,65,2],[58,9,65,9],[52,9,56,9],[67,9,76,9],[78,2,81,2],[78,9,81,9],[82,2,83,2],[84,2,86,2],[66,2,76,2],[82,9,83,9],[84,9,86,9]]}
[]
[null,null,"Programme Management"]
[]
[null,null,"Element","Criteria",null,"N/A","Absent","Present but not optimal","Present and working well","Average for element","Comments (if applicable)","Absent","Present","Optimal","Average","Sustainability Single Figure"]
[null,null,"Leadership and capacity"]
[null,null,"National condom plan/strategy","○","A National Condom Plan exists ",null,null,null,null,{"$f":"IFERROR(O6,\"-\")","v":"-"},null,null,null,null,{"$f":"IFERROR(ROUND(AVERAGEIF(L7:N17,\"<>0\",L7:N17),0),\"-\")","v":"-"}]
[null,null,null,"○","The National Condom Plan has been informed by a situation analysis that includes a total market analysis",null,null,null,null,null,null,{"$f":"IF(ISBLANK(G7),0,1)","v":0},{"$f":"IF(ISBLANK(H7),0,3)","v":0},{"$f":"IF(ISBLANK(I7),0,5)","v":0}]
[null,null,null,"○","The National Condom Plan  includes a clear Logic Model / Theory of Change / Results Framework that links activities to outputs, outcomes, and goals",null,null,null,null,null,null,0,0,0]
[null,null,null,"○","The National Condom Plan identifies priority populations and provides rationale for their selection",null,null,null,null,null,null,0,0,0]
[null,null,null,"○","National Condom Plan defines barriers  /constraints to condom use",null,null,null,null,null,null,0,0,0]
[null,null,null,"○","National Condom Plan defines behavioural objectives for priority populations that factor in supply, demand, and program stewardship",null,null,null,null,null,null,0,0,0]
[null,null,null,"○","National Condom Plan includes prioritised interventions to address identified barriers/constraints",null,null,null,null,null,null,0,0,0]
[null,null,null,"○","The National Condom Plan is referenced in the National HIV plan, the HIV Prevention strategy, and / or Family Planning strategy",null,null,null,null,null,null,0,0,0]
[null,null,null,"○","The National Condom Plan drives funding decisions",null,null,null,null,null,null,0,0,0]
[null,null,null,"○","National Condom Plan cited in funding requests (proposals, budgets) by government or implementing partners",null,null,null,null,null,null,0,0,0]
[null,null,null,"○","Operational plan (workplan with timelines, identified responsibilities and accountably) for National Condom Plan exists",null,null,null,null,null,null,0,0,0]
[null,null,null,"○","The operational plan is updated on a regular basis (status of actions recorded, timelines adjusted)",null,null,null,null,null,null,{"$f":"IF(ISBLANK(G17),0,1)","v":0},{"$f":"IF(ISBLANK(H17),0,3)","v":0},{"$f":"IF(ISBLANK(I17),0,5)","v":0}]
[null,null,"Government Capacity to manage to a Total Market Approach","○","The government understands its role in stewarding a Total Market Approach, and recognises the relative contribution of partners and sectors",null,null,null,null,{"$f":"IFERROR(O18,\"-\")","v":"-"},null,null,null,null,{"$f":"IFERROR(ROUND(AVERAGEIF(L18:N19,\"<>0\",L18:N19),0),\"-\")","v":"-"}]
[null,null,null,"○","The government has the capacity - including the human resources, experience and tools - relevant to managing a cross-sector approach supporting a Total Market Approach",null,null,null,null,null,null,{"$f":"IF(ISBLANK(G19),0,1)","v":0},{"$f":"IF(ISBLANK(H19),0,3)","v":0},{"$f":"IF(ISBLANK(I19),0,5)","v":0}]
[null,null,"Vision or plan for a healthy, sustainable condom market and programme exists \n","○","The National Condom Plan includes a clear vision or plan for a sustainable condom market that embraces a total market approach",null,null,null,null,{"$f":"IFERROR(O20,\"-\")","v":"-"},null,null,null,null,{"$f":"IFERROR(ROUND(AVERAGEIF(L21:N24,\"<>0\",L21:N24),0),\"-\")","v":"-"}]
[null,null,null,"○","The National Condom Plan includes vision for a sustainable condom market outlining a path to reduced dependence on external subsidy through a Total Market Approach",null,null,null,null,null,null,0,0,0,null,{"$f":"IF(MAX(L21:N21)=0,\"\",MAX(L21:N21))","v":""}]
[null,null,null,"○","Condom needs estimates reflect current use and contribution of all sectors based on CNET or similar tool",null,null,null,null,null,null,0,0,0]
[null,null,null,"○","A plan, strategy, our outline describing a Total Market Approach is in place and guiding interventions",null,null,null,null,null,null,0,0,0]
[null,null,null,"○","Interventions focus on systemic fixes that will benefit multiple sectors and actors in market",null,null,null,null,null,null,0,0,0]
[null,null,"Government Leadership and Coordination","○","Condom programming has a clear lead department / agency with the mandate and responsibility to lead and coordinate",null,null,null,null,{"$f":"IFERROR(O25,\"-\")","v":"-"},null,null,0,null,{"$f":"IFERROR(ROUND(AVERAGEIF(L25:N30,\"<>0\",L25:N30),0),\"-\")","v":"-"}]
[null,null,null,"○","The lead department / agency has support of other relevant government agencies",null,null,null,null,null,null,0,0,0]
[null,null,null,"○","There is a recognized, dedicated focal point for condom programming within government",null,null,null,null,null,null,0,0,0]
[null,null,null,"○","The programme has designated a focal point has sufficient level of effort devoted to responsibilities",null,null,null,null,null,null,0,0,0]
[null,null,null,"○","The programme is led by a focal point that has a clear understanding of and capacity to manage to a total market approach",null,null,null,null,null,null,0,0,0]
[null,null,null,"○","The programme is led by a focal point that can effectively convene relevant partners actors in the sector to coordinate on the national plan",null,null,null,null,null,null,{"$f":"IF(ISBLANK(G30),0,1)","v":0},{"$f":"IF(ISBLANK(H30),0,3)","v":0},{"$f":"IF(ISBLANK(I30),0,5)","v":0}]
[null,null,"Overall coordination","○","Condom technical working group or equivalent has Terms of Reference that has been reviewed / updated in the last 12 months and meets regularly",null,null,null,null,{"$f":"IFERROR(O31,\"-\")","v":"-"},null,null,null,{"$f":"IF(ISBLANK(I31),0,5)","v":0},{"$f":"IFERROR(ROUND(AVERAGEIF(L31:N36,\"<>0\",L31:N36),0),\"-\")","v":"-"}]
[null,null,null,"○","Condom technical working group includes representatives from National AIDS Council and relevant programs in Ministry Of Health (Sexual Reproductive Health/Family Planning) and other relevant programs (i.e. Ministry of Education)",null,null,null,null,null,null,0,0,0]
[null,null,null,"○","Condom technical working group includes representatives from private sector, social marketing organizations, other civil society organizations, and user voices",null,null,null,null,null,null,0,0,0]
[null,null,null,"○","Members regularly attend meetings",null,null,null,null,null,null,0,0,0]
[null,null,null,"○","Implementers align their activities to National Condom Plan and understand how other partners support the National Condom Plan",null,null,null,null,null,null,0,0,0]
[null,null,null,"○","Action item status tracked and meeting minutes include action items linked to National Condom Plan priorities and status is tracked",null,null,null,null,null,null,0,0,0]
[null,null,"Policies and regulation"]
[null,null,"Quality assurance","○","Standards for quality of condoms exist and are applied",null,null,null,null,{"$f":"IFERROR(O38,\"-\")","v":"-"},null,null,null,null,{"$f":"IFERROR(ROUND(AVERAGEIF(L38:N42,\"<>0\",L38:N42),0),\"-\")","v":"-"}]
[null,null,null,"○","The government accepts pre-shipment testing through certified manufacturers outlined in policies",null,null,null,null,null,null,{"$f":"IF(ISBLANK(G39),0,1)","v":0},{"$f":"IF(ISBLANK(H39),0,3)","v":0},{"$f":"IF(ISBLANK(I39),0,5)","v":0}]
[null,null,null,"○","National labs are accredited by an international body (World Health Organisation, FHI360, or other recognized intel entity) ",null,null,null,null,null,null,{"$f":"IF(ISBLANK(G40),0,1)","v":0},{"$f":"IF(ISBLANK(H40),0,3)","v":0},{"$f":"IF(ISBLANK(I40),0,5)","v":0}]
[null,null,null,"○","Testing times and costs are not cited as a substantial bottleneck to the condom supply chain by the private, public, or SM sectors",null,null,null,null,null,null,0,0,0]
[null,null,null,"○","Any required in-country testing occurs with a predictable timeline and does not add substantially to costs",null,null,null,null,null,null,0,0,0]
[null,null,"Policies","○","Policies support an enabling environment for programmes reaching priority populations including Key Populations, youth, and populations at risk",null,null,null,null,{"$f":"IFERROR(O43,\"-\")","v":"-"},null,null,null,null,{"$f":"IFERROR(ROUND(AVERAGEIF(L43:N47,\"<>0\",L43:N47),0),\"-\")","v":"-"}]
[null,null,null,"○","Condom behaviour change messaging allowed on mass media and in areas accessible to populations at high risk including bars and schools",null,null,null,null,null,null,0,0,0]
[null,null,null,"○","Condom distribution and promotion policies actively and explicitly support rights for key populations",null,null,null,null,null,null,0,0,0]
[null,null,null,"○","No prohibition on carrying condoms (e.g. to justify arrest of sex workers)",null,null,null,null,null,null,0,0,0]
[null,null,null,"○","Government regulatory, quality assurance and taxation policies create an even playing field for all sectors, and are  not excessively inhibitive (costly, overly arduous to follow)",null,null,null,null,null,null,0,0,0]
[null,null,"Regulatory and taxation environment","○","Regulatory and taxation environment is clear, consistent, and doesn't prohibit quality condoms from being imported, distributed, and used",null,null,null,null,null,null,null,null,null,{"$f":"IFERROR(ROUND(AVERAGEIF(L49:N52,\"<>0\",L49:N52),0),\"-\")","v":"-"}]
[null,null,null,"○","VAT is not applied on condoms",null,null,null,null,{"$f":"IFERROR(O48,\"-\")","v":"-"},null,0,0,0]
[null,null,null,"○","Import duties are negligible / do not contain imports",null,null,null,null,null,null,0,0,0,null,{"$f":"IF(MAX(L50:N50)=0,\"\",MAX(L50:N50))","v":""}]
[null,null,null,"○","Commercial condom brands are regulated the same way as those imported by donors, government or social marketers",null,null,null,null,null,null,0,0,0,null,{"$f":"IF(MAX(L51:N51)=0,\"\",MAX(L51:N51))","v":""}]
[null,null,null,"○","Import / customs clearance time is short (not prohibitive) and predictable",null,null,null,null,null,null,{"$f":"IF(ISBLANK(G52),0,1)","v":0},{"$f":"IF(ISBLANK(H52),0,3)","v":0},{"$f":"IF(ISBLANK(I52),0,5)","v":0}]
[null,null,"Guidance","○","Appropriate guidance in place to support implementers to execute policy",null,null,null,null,{"$f":"IFERROR(O53,\"-\")","v":"-"},null,null,null,null,{"$f":"IFERROR(ROUND(AVERAGEIF(L54:N64,\"<>0\",L54:N64),0),\"-\")","v":"-"}]
[null,null,null,"○","Targeted distribution of free condoms to priority populations informed by guidance (standard operating procedures or other)",null,null,null,null,null,null,{"$f":"IF(ISBLANK(G54),0,1)","v":0},{"$f":"IF(ISBLANK(H54),0,3)","v":0},{"$f":"IF(ISBLANK(I54),0,5)","v":0}]
[null,null,null,"○","Demand creation interventions are informed by a strategy/guidance that includes segmented approach for priority populations",null,null,null,null,null,null,0,0,0]
[null,null,null,"○","Integration of condoms into Sexual Reproductive Health, other prevention, and treatment programs are supported by guidance outlining how departments can best meet users' wholistic needs",null,null,null,null,null,null,0,0,0]
[null,null,null,"○","COVID-19 infection prevention and control measures are incorporated into all HIV prevention/condom strategies, plans and guidelines","x",null,null,null,null,null,0,0,0]
[null,null,"Programme analytics"]
[null,null,"Monitoring and Evaluation Plan","○","Monitoring and Evaluation plan for the NCP exists",null,null,null,null,{"$f":"IFERROR(O59,\"-\")","v":"-"},null,null,null,null,{"$f":"IFERROR(ROUND(AVERAGEIF(L60:N66,\"<>0\",L60:N66),0),\"-\")","v":"-"}]
[null,null,null,"○","Monitoring and Evaluation plan links explicitly to goals, objectives, priorities, and behavioural factors identified in National Condom Plan",null,null,null,null,null,null,0,0,0]
[null,null,null,"○","Monitoring and Evaluation plan includes condom use targets",null,null,null,null,null,null,0,0,0]
[null,null,null,"○","Monitoring and Evaluation plan includes Total Market Approach indicators such as tracking of condom distribution by sector (public, private, Non-governmental Organisation); value of condoms in private sector; access across outlet types)",null,null,null,null,null,null,{"$f":"IF(ISBLANK(G62),0,1)","v":0},{"$f":"IF(ISBLANK(H62),0,3)","v":0},{"$f":"IF(ISBLANK(I62),0,5)","v":0}]
[null,null,null,"○","Monitoring and Evaluation plan includes tracking of behavioural factors influencing use",null,null,null,null,null,null,{"$f":"IF(ISBLANK(G63),0,1)","v":0},{"$f":"IF(ISBLANK(H63),0,3)","v":0},{"$f":"IF(ISBLANK(I63),0,5)","v":0}]
[null,null,null,"○","Monitoring and Evaluation plan is updated on a regular basis and distributed to key partners (Condom technical working group, etc)",null,null,null,null,null,null,0,0,0]
[null,null,null,"○","Condom availability in public and private outlets is assessed at least annually",null,null,null,null,null,null,{"$f":"IF(ISBLANK(G65),0,1)","v":0},{"$f":"IF(ISBLANK(H65),0,3)","v":0},{"$f":"IF(ISBLANK(I65),0,5)","v":0}]
[null,null,null,"○","Data on user perceptions of condom availability is collected at least every 3 years",null,null,null,null,null,null,0,0,0]
[null,null,"Data collection, analysis, management, and use","○","Data is collected, made available, analysed, and used to inform decision making",null,null,null,null,null,null,null,null,null,{"$f":"IFERROR(ROUND(AVERAGEIF(L68:N77,\"<>0\",L68:N77),0),\"-\")","v":"-"}]
[null,null,null,"○","Focal point actively tracks implementation of Monitoring and Evaluation plan",null,null,null,null,{"$f":"IFERROR(O67,\"-\")","v":"-"},null,0,0,0]
[null,null,null,"○","Non-governmental Organisations, social markets, public and commercial sectors generate and share market data with Condom technical working group",null,null,null,null,null,null,0,0,0]
[null,null,null,"○","Representative data on condom use for priority populations has been collected in last 3 years",null,null,null,null,null,null,0,0,0]
[null,null,null,"○","Behavioural factors influencing condom use in priority populations has been collected in last two years",null,null,null,null,null,null,0,0,0]
[null,null,null,"○"," Condom distribution by sector is tracked (estimated) and reported at least twice a year",null,null,null,null,null,null,0,0,0]
[null,null,null,"○","Routine collection and analyses of existing market data informs decisions overseen by Condom technical working group",null,null,null,null,null,null,0,0,0]
[null,null,null,"○","Data / information gaps have been identified",null,null,null,null,null,null,{"$f":"IF(ISBLANK(G74),0,1)","v":0},{"$f":"IF(ISBLANK(H74),0,3)","v":0},{"$f":"IF(ISBLANK(I74),0,5)","v":0}]
[null,null,null,"○","Non-governmental Organisations, social marketers, public and commercial sectors generate and share market data with Condom technical working group",null,null,null,null,null,null,{"$f":"IF(ISBLANK(G75),0,1)","v":0},{"$f":"IF(ISBLANK(H75),0,3)","v":0},{"$f":"IF(ISBLANK(I75),0,5)","v":0}]
[null,null,null,"○","Sectors participating in the Condom technical working group demonstrate ability to use data to inform decisions",null,null,null,null,null,null,{"$f":"IF(ISBLANK(G76),0,1)","v":0},{"$f":"IF(ISBLANK(H76),0,3)","v":0},{"$f":"IF(ISBLANK(I76),0,5)","v":0}]
[null,null,null,"○","A Logistic Management Information System exists to track public sector condoms ",null,null,null,null,null,null,{"$f":"IF(ISBLANK(G77),0,1)","v":0},{"$f":"IF(ISBLANK(H77),0,3)","v":0},{"$f":"IF(ISBLANK(I77),0,5)","v":0}]
[null,null,"Financing"]
[null,null,"Budget support","○","Condom focal point and related staff funding to perform functions is sufficient and secure ",null,null,null,null,{"$f":"IFERROR(O79,\"-\")","v":"-"},null,null,null,null,{"$f":"IFERROR(ROUND(AVERAGEIF(L80:N82,\"<>0\",L80:N82),0),\"-\")","v":"-"}]
[null,null,null,"○","Funding has been secured to meet condom procurement needs for at least next 3 years of condom needs ",null,null,null,null,null,null,{"$f":"IF(ISBLANK(G80),0,1)","v":0},{"$f":"IF(ISBLANK(H80),0,3)","v":0},{"$f":"IF(ISBLANK(I80),0,5)","v":0}]
[null,null,null,"○","Funding levels, needs and gaps are understood and shared across government and with potential donors",null,null,null,null,null,null,{"$f":"IF(ISBLANK(G81),0,1)","v":0},{"$f":"IF(ISBLANK(H81),0,3)","v":0},{"$f":"IF(ISBLANK(I81),0,5)","v":0}]
[null,null,null,"○","Domestic funding is available to support procurement of at least 20% of condoms for public sector/free distribution",null,null,null,null,null,null,{"$f":"IF(ISBLANK(G82),0,1)","v":0},{"$f":"IF(ISBLANK(H82),0,3)","v":0},{"$f":"IF(ISBLANK(I82),0,5)","v":0}]
[null,null,"Market reliance on subsidy","○","Social Marketing organizations have a path to sustainably and equitably address the needs of target populations",null,null,null,null,{"$f":"IFERROR(O83,\"-\")","v":"-"},null,null,null,null,{"$f":"IFERROR(ROUND(AVERAGEIF(L84:N84,\"<>0\",L84:N84),0),\"-\")","v":"-"},{"$f":"IF(MAX(L83:N83)=0,\"\",MAX(L83:N83))","v":""}]
[null,null,null,"○","Relative reliance of the entire condom market on external (donor) subsidy is not significant, is decreasing, or a plan exists to decrease reliance",null,null,null,null,null,null,{"$f":"IF(ISBLANK(G84),0,1)","v":0},{"$f":"IF(ISBLANK(H84),0,3)","v":0},{"$f":"IF(ISBLANK(I84),0,5)","v":0},null,{"$f":"IF(MAX(L84:N84)=0,\"\",MAX(L84:N84))","v":""}]
[null,null,"Market potential and growth","○","Number of distinct products/brands/price points on the market is diverse and growing ",null,null,null,null,{"$f":"IFERROR(O85,\"-\")","v":"-"},null,null,null,null,{"$f":"IFERROR(ROUND(AVERAGEIF(L86:N87,\"<>0\",L86:N87),0),\"-\")","v":"-"},{"$f":"IF(MAX(L85:N85)=0,\"\",MAX(L85:N85))","v":""}]
[null,null,null,"○","Value of the market is growing ",null,null,null,null,null,null,{"$f":"IF(ISBLANK(G86),0,1)","v":0},{"$f":"IF(ISBLANK(H86),0,3)","v":0},{"$f":"IF(ISBLANK(I86),0,5)","v":0},null,{"$f":"IF(MAX(L86:N86)=0,\"\",MAX(L86:N86))","v":""}]
[null,null,null,"○","Commercial market volume growth increasing",null,null,null,null,null,null,{"$f":"IF(ISBLANK(G87),0,1)","v":0},{"$f":"IF(ISBLANK(H87),0,3)","v":0},{"$f":"IF(ISBLANK(I87),0,5)","v":0},null,{"$f":"IF(MAX(L87:N87)=0,\"\",MAX(L87:N87))","v":""}]
[]
[null,null,null,null,null,null,null,null,null,null,null,null,{"$f":"COUNTIF(O6:O87,\"-\")","v":14}]
[null,null,null,null,null,null,null,null,null,null,null,null,{"$f":"COUNTIF(O6:O87,\">0\")","v":0}]
[null,null,null,null,null,null,null,null,null,null,null,"Sheet Completion",{"$f":"M90/(M89+M90)","v":0},{"$f":"1-M91","v":1}]

{"sheet":"Programme Implementation","index":6,"n_rows":38,"n_cols":16,"rows_kept":38,"cut":false,"hidden":false,"merged":[[7,2,8,2],[7,9,8,9],[1,2,1,9],[3,3,3,4],[5,2,6,2],[5,9,6,9],[11,2,13,2],[11,3,11,4],[11,9,13,9],[14,2,16,2],[14,3,14,4],[14,9,16,9],[14,5,14,8],[18,2,20,2],[18,3,18,4],[18,9,20,9],[21,3,21,4],[22,2,23,2],[22,9,23,9],[18,5,18,8],[27,2,28,2],[27,9,28,9],[24,3,24,4],[24,2,26,2],[24,9,26,9],[24,5,24,8]]}
[]
[null,null,"Programme Implementation"]
[]
[null,null,"Element","Criteria",null,"N/A","Absent","Present but not optimal","Present and working well","Average for element","Comments (if applicable)","Absent","Present","Optimal","Average","Sustainability Single Figure"]
[null,null,"Integration"]
[null,null,"Condom promotion and distribution activities are integrated into other HIV prevention, family planning and sexual and reproductive health programmes","○","Guidance outlines how condom promotion and distribution can / should be integrated into Family Planning, HIV treatment, other prevention, and interventions targeting Key Population and Adolescent Girls and Young Women",null,null,null,null,{"$f":"IFERROR(O6,\"-\")","v":"-"},null,{"$f":"IF(ISBLANK(G6),0,1)","v":0},{"$f":"IF(ISBLANK(H6),0,3)","v":0},{"$f":"IF(ISBLANK(I6),0,5)","v":0},{"$f":"IFERROR(ROUND(AVERAGEIF(L6:N7,\"<>0\",L6:N7),0),\"-\")","v":"-"}]
[null,null,null,"○","Standard Operating Procedures(or equivalent) exist supporting providers / Community Health Workers / peer educators from Sexual Reproductive Health/ Family Planning/ HIV treatment/ other prevention (Adolescent Girls and Young Women, Key Population, Pre-exposure prophylaxis, etc.) programs to incorporate condom programming messages and distribution into their interventions",null,null,null,null,null,null,{"$f":"IF(ISBLANK(G7),0,1)","v":0},{"$f":"IF(ISBLANK(H7),0,3)","v":0},{"$f":"IF(ISBLANK(I7),0,5)","v":0}]
[null,null,"COVID 19","○","Programs  are in place to encourage and track COVID-19 vaccine uptake among condom users",null,null,null,null,{"$f":"IFERROR(O8,\"-\")","v":"-"},null,{"$f":"IF(ISBLANK(G8),0,1)","v":0},{"$f":"IF(ISBLANK(H8),0,3)","v":0},{"$f":"IF(ISBLANK(I8),0,5)","v":0},{"$f":"IFERROR(ROUND(AVERAGEIF(L8:N9,\"<>0\",L8:N9),0),\"-\")","v":"-"}]
[null,null,null,"○","Continued messaging and safe access to non-facility-based service delivery models (e.g. community-based, home-based, telehealth) during COVID-19 peaks to avoid service disruption",null,null,null,null,null,null,{"$f":"IF(ISBLANK(G9),0,1)","v":0},{"$f":"IF(ISBLANK(H9),0,3)","v":0},{"$f":"IF(ISBLANK(I9),0,5)","v":0}]
[null,null,"Demand (focus on priority populations as identified in national plan)"]
[null,null,"Behavioural data used to inform demand creation activities","○","Evidence drives behaviour change / demand generation / communication interventions",null,null,null,null,{"$f":"IFERROR(O11,\"-\")","v":"-"},null,{"$f":"IF(ISBLANK(G11),0,1)","v":0},{"$f":"IF(ISBLANK(H11),0,3)","v":0},{"$f":"IF(ISBLANK(I11),0,5)","v":0},{"$f":"IFERROR(ROUND(AVERAGEIF(L11:N11,\"<>0\",L11:N11),0),\"-\")","v":"-"}]
[null,null,"Segmentation strategies","Segmentation strategies exist and:",null,null,null,null,null,{"$f":"IFERROR(O12,\"-\")","v":"-"},null,null,null,null,{"$f":"IFERROR(ROUND(AVERAGEIF(L13:N14,\"<>0\",L13:N14),0),\"-\")","v":"-"}]
[null,null,null,"○","Target interventions to audiences divided into smaller groups with similar needs, preferences and characteristics",null,null,null,null,null,null,{"$f":"IF(ISBLANK(G13),0,1)","v":0},{"$f":"IF(ISBLANK(H13),0,3)","v":0},{"$f":"IF(ISBLANK(I13),0,5)","v":0}]
[null,null,null,"○","Drive intervention design and may include a segmentation by demographic, behaviour (populations engaging in risk behaviours), psychographic, or other population groupings",null,null,null,null,null,null,{"$f":"IF(ISBLANK(G14),0,1)","v":0},{"$f":"IF(ISBLANK(H14),0,3)","v":0},{"$f":"IF(ISBLANK(I14),0,5)","v":0}]
[null,null,"Demand creation guidance","Specific guidance exists to prioritise investments in interventions reaching prioritised populations:",null,null,null,null,null,{"$f":"IFERROR(O15,\"-\")","v":"-"},null,null,null,null,{"$f":"IFERROR(ROUND(AVERAGEIF(L16:N17,\"<>0\",L16:N17),0),\"-\")","v":"-"}]
[null,null,null,"○","Existence of standard operating procedures drives condom promotion, outreach and distribution for front line workers",null,null,null,null,null,null,{"$f":"IF(ISBLANK(G16),0,1)","v":0},{"$f":"IF(ISBLANK(H16),0,3)","v":0},{"$f":"IF(ISBLANK(I16),0,5)","v":0}]
[null,null,null,"○","Communication strategies / guidance / plan exists",null,null,null,null,null,null,{"$f":"IF(ISBLANK(G17),0,1)","v":0},{"$f":"IF(ISBLANK(H17),0,3)","v":0},{"$f":"IF(ISBLANK(I17),0,5)","v":0}]
[null,null,"Supply"]
[null,null,"Quantification of universe of need","Total condom needs in the country have been quantified and analysed against existing condom use using the United Nations Programme on HIV/AIDS UNAIDS Condom Needs and Resource Requirement Estimation Tool C-NET:",null,null,null,null,null,{"$f":"IFERROR(O19,\"-\")","v":"-"},null,null,null,null,{"$f":"IFERROR(ROUND(AVERAGEIF(L20:N21,\"<>0\",L20:N21),0),\"-\")","v":"-"}]
[null,null,null,"○","The difference between need, consumption and supply is understood, analysed by priority population, and a informs national plans",null,null,null,null,null,null,{"$f":"IF(ISBLANK(G20),0,1)","v":0},{"$f":"IF(ISBLANK(H20),0,3)","v":0},{"$f":"IF(ISBLANK(I20),0,5)","v":0}]
[null,null,null,"○","Procurement of condom supply is reliable and adequate to meet current consumption, with a modest margin on top of that consumption to account for growing demand",null,null,null,null,null,null,{"$f":"IF(ISBLANK(G21),0,1)","v":0},{"$f":"IF(ISBLANK(H21),0,3)","v":0},{"$f":"IF(ISBLANK(I21),0,5)","v":0}]
[null,null,"Distribution factors in a Total Market Approach","A coordinated condom supply plan / strategy factors in the contribution of the public, Social Marketing, and Commercial sectors, and the relative advantages of each to reach target populations",null,null,null,null,null,{"$f":"IFERROR(O22,\"-\")","v":"-"},null,{"$f":"IF(ISBLANK(G22),0,1)","v":0},{"$f":"IF(ISBLANK(H22),0,3)","v":0},{"$f":"IF(ISBLANK(I22),0,5)","v":0},{"$f":"IFERROR(ROUND(AVERAGEIF(L22:N22,\"<>0\",L22:N22),0),\"-\")","v":"-"}]
[null,null,"Multi-year procurement plan for condoms (Reproductive Health Supplies Coalition plan)","○","Procurement is driven by a multi-year procurement plan with quantification incorporating supply by Social Marketing and commercial sectors, and factors in consumption and projected use using the UNAIDS Condom Needs and Resource Requirement Estimation Tool (C-NET Tool)",null,null,null,null,{"$f":"IFERROR(O23,\"-\")","v":"-"},null,{"$f":"IF(ISBLANK(G23),0,1)","v":0},{"$f":"IF(ISBLANK(H23),0,3)","v":0},{"$f":"IF(ISBLANK(I23),0,5)","v":0},{"$f":"IFERROR(ROUND(AVERAGEIF(L23:N24,\"<>0\",L23:N24),0),\"-\")","v":"-"}]
[null,null,null,"○","Quantification efforts map out funding sources, and captures number of condoms required to address existing use or demand, rather than total needs",null,null,null,null,null,null,{"$f":"IF(ISBLANK(G24),0,1)","v":0},{"$f":"IF(ISBLANK(H24),0,3)","v":0},{"$f":"IF(ISBLANK(I24),0,5)","v":0}]
[null,null,"Quality of supply","Months inventory supporting free/public distribution in warehouses is at least 6 months of calculated supply required and stock outs are not a challenge at the national, regional, or sub-regional level:",null,null,null,null,null,{"$f":"IFERROR(O25,\"-\")","v":"-"},null,null,null,null,{"$f":"IFERROR(ROUND(AVERAGEIF(L26:N27,\"<>0\",L26:N27),0),\"-\")","v":"-"}]
[null,null,null,"○","   Stock outs at national, regional, or facility level, or for implementing partners (Community Based Organisations, etc)  are not a challenge",null,null,null,null,null,null,{"$f":"IF(ISBLANK(G26),0,1)","v":0},{"$f":"IF(ISBLANK(H26),0,3)","v":0},{"$f":"IF(ISBLANK(I26),0,5)","v":0}]
[null,null,null,"○"," Expiring condoms at the central or sub-national level are not a challenge",null,null,null,null,null,null,0,0,0]
[null,null,"Guidance supporting distribution of free condoms","○","The national programme has adopted guidance to support targeted distribution and promotion to priority populations",null,null,null,null,{"$f":"IFERROR(O28,\"-\")","v":"-"},null,0,0,0,{"$f":"IFERROR(ROUND(AVERAGEIF(L28:N29,\"<>0\",L28:N29),0),\"-\")","v":"-"}]
[null,null,null,"○","Standard Operating Procedures support providers and outreach workers by outlining how to integrate counselling with distribution, factoring in condoms for Family Planning and sexual frequency, and risky behaviours",null,null,null,null,null,null,0,0,0]
[null,null,"Logistic management information system","○","Existence of Logistic management information system with condoms integrated into national MIS systems",null,null,null,null,{"$f":"IFERROR(O30,\"-\")","v":"-"},null,0,0,0,{"$f":"IFERROR(ROUND(AVERAGEIF(L30:N30,\"<>0\",L30:N30),0),\"-\")","v":"-"}]
[null,null,"Perceived accessibility/condom availability","○","Condoms are perceived as being largely accessible and available by populations and population sub-groups",null,null,null,null,{"$f":"IFERROR(O31,\"-\")","v":"-"},null,0,0,0,{"$f":"IFERROR(ROUND(AVERAGEIF(L31:N31,\"<>0\",L31:N31),0),\"-\")","v":"-"}]
[]
[]
[null,null,null,null,""]
[]
[null,null,null,null,null,null,null,null,null,null,null,null,{"$f":"COUNTIF(O5:O31,\"-\")","v":12}]
[null,null,null,null,null,null,null,null,null,null,null,null,{"$f":"COUNTIF(O6:O31,\">0\")","v":0}]
[null,null,null,null,null,null,null,null,null,null,null,"Sheet Completion",{"$f":"M37/(M36+M37)","v":0},{"$f":"1-M38","v":1}]

{"sheet":"Programme Outcomes ","index":7,"n_rows":23,"n_cols":15,"rows_kept":23,"cut":false,"hidden":false,"merged":[[17,2,17,4],[18,2,18,4],[8,2,8,4],[9,2,9,4],[15,2,15,4],[10,2,10,4],[11,2,11,4],[12,2,12,4],[13,2,13,4],[1,2,1,9],[3,3,3,4],[6,2,6,4],[7,2,7,4],[16,2,16,4]]}
[]
[null,null,"Programme Outcomes"]
[]
[null,null,"Element","Criteria",null,"N/A","No target","Target not met or not on track","Target met or on track","Average for element","Comments (if applicable)","Absent","Present","Optimal","Average"]
[null,null,"Outcomes and indicators"]
[null,null,"Key Indicators"]
[null,null,"At risk population exposure to demand creation activities/behavioural interventions",null,null,null,null,null,null,{"$f":"IFERROR(O7,\"-\")","v":"-"},null,{"$f":"IF(ISBLANK(G7),0,1)","v":0},{"$f":"IF(ISBLANK(H7),0,3)","v":0},{"$f":"IF(ISBLANK(I7),0,5)","v":0},{"$f":"IFERROR(IF(ISBLANK(G7),ROUND(AVERAGEIF(L7:N7,\"<>0\",L7:N7),0),L7),\"-\")","v":"-"}]
[null,null,"% of users that report condoms are available 'when and where I need them",null,null,null,null,null,null,{"$f":"IFERROR(O8,\"-\")","v":"-"},null,0,0,0,{"$f":"IFERROR(IF(ISBLANK(G8),ROUND(AVERAGEIF(L8:N8,\"<>0\",L8:N8),0),L8),\"-\")","v":"-"}]
[null,null,"% of people who used condoms with a non-regular partner in the last 12 months\n (men; disaggregated by age)",null,null,null,null,null,null,"-",null,{"$f":"IF(ISBLANK(G9),0,1)","v":0},{"$f":"IF(ISBLANK(H9),0,3)","v":0},{"$f":"IF(ISBLANK(I9),0,5)","v":0},{"$f":"IFERROR(IF(ISBLANK(G9),ROUND(AVERAGEIF(L9:N9,\"<>0\",L9:N9),0),L9),\"-\")","v":"-"}]
[null,null,"% of people who used condoms with a non-regular partner in the last 12 months \n(women; disaggregated by age)",null,null,null,null,null,null,"-",null,0,0,0,"-"]
[null,null,"% of men who used a condom the last time they had anal sex with a non-regular male partner",null,null,null,null,null,null,"-",null,0,0,0,"-"]
[null,null,"% of sex workers who used a condom the last time they had sex with a client",null,null,null,null,null,null,"-",null,0,0,0,"-"]
[null,null,"% Condom use at last paid sexual intercourse (among men)",null,null,null,null,null,null,"-",null,0,0,0,"-"]
[null,null,"% Condom use during premarital sex (among men and women 15-24) of those that report premarital sex",null,null,null,null,null,null,"-",null,{"$f":"IF(ISBLANK(G14),0,1)","v":0},{"$f":"IF(ISBLANK(H14),0,3)","v":0},{"$f":"IF(ISBLANK(I14),0,5)","v":0},{"$f":"IFERROR(IF(ISBLANK(G14),ROUND(AVERAGEIF(L14:N14,\"<>0\",L14:N14),0),L14),\"-\")","v":"-"}]
[null,null,"Supplementary indicators"]
[null,null,"Total number of condoms distributed during the reporting period, disaggregated by sector",null,null,null,null,null,null,"-",null,0,0,0,{"$f":"IFERROR(IF(ISBLANK(G16),ROUND(AVERAGEIF(L16:N16,\"<>0\",L16:N16),0),L16),\"-\")","v":"-"}]
[null,null,"Number of public sector sites reporting stock out of condoms in the past 12 months",null,null,null,null,null,null,"-",null,{"$f":"IF(ISBLANK(G17),0,1)","v":0},{"$f":"IF(ISBLANK(H17),0,3)","v":0},{"$f":"IF(ISBLANK(I17),0,5)","v":0},{"$f":"IFERROR(IF(ISBLANK(G17),ROUND(AVERAGEIF(L17:N17,\"<>0\",L17:N17),0),L17),\"-\")","v":"-"}]
[null,null,"Coverage: % of appropriate outlets (i.e., delivery points across sectors) that carry condoms",null,null,null,null,null,null,"-",null,{"$f":"IF(ISBLANK(G18),0,1)","v":0},{"$f":"IF(ISBLANK(H18),0,3)","v":0},{"$f":"IF(ISBLANK(I18),0,5)","v":0},{"$f":"IFERROR(IF(ISBLANK(G18),ROUND(AVERAGEIF(L18:N18,\"<>0\",L18:N18),0),L18),\"-\")","v":"-"}]
[null,null,"Equitable condom use: No more than 10% differential between percentage population in wealthiest two quintiles who report using condoms and those in the poorest two quintiles",null,null,null,null,null,null,"-",null,{"$f":"IF(ISBLANK(G19),0,1)","v":0},{"$f":"IF(ISBLANK(H19),0,3)","v":0},{"$f":"IF(ISBLANK(I19),0,5)","v":0},{"$f":"IFERROR(IF(ISBLANK(G19),ROUND(AVERAGEIF(L19:N19,\"<>0\",L19:N19),0),L19),\"-\")","v":"-"}]
[]
[null,null,null,null,null,null,null,null,null,null,null,null,{"$f":"COUNTIF(O7:O19,\"-\")","v":12}]
[null,null,null,null,null,null,null,null,null,null,null,null,{"$f":"COUNTIF(O7:O19,\">0\")","v":0}]
[null,null,null,null,null,null,null,null,null,null,null,"Sheet Completion",{"$f":"M22/(M21+M22)","v":0},{"$f":"1-M23","v":1}]

{"sheet":"Summary of scores","index":8,"n_rows":46,"n_cols":11,"rows_kept":46,"cut":false,"hidden":false,"merged":[[27,2,39,2],[27,3,34,3],[35,3,38,3],[16,2,26,2],[17,3,19,3],[20,3,26,3],[1,2,1,6],[2,3,6,3],[2,2,15,2],[7,3,10,3],[11,3,12,3],[13,3,15,3]]}
[]
[null,null,"Summary of scores"]
[null,null,"Programme Management","Leadership and capacity",null,"National condom plan/strategy",{"$f":"'Programme Management'!O6","v":"-"}]
[null,null,null,null,null,"Vision or plan for a healthy, sustainable condom market and programme exists ",{"$f":"'Programme Management'!O18","v":"-"}]
[null,null,null,null,null,"Government Leadership and Coordination",{"$f":"'Programme Management'!O20","v":"-"}]
[null,null,null,null,null,"Government Capacity to manage to a total market approach Total Market Approach",{"$f":"'Programme Management'!O25","v":"-"}]
[null,null,null,null,null,"Overall coordination",{"$f":"'Programme Management'!O31","v":"-"}]
[null,null,null,"Policies and regulation",null,"Quality assurance",{"$f":"'Programme Management'!O38","v":"-"}]
[null,null,null,null,null,"Policies",{"$f":"'Programme Management'!O43","v":"-"}]
[null,null,null,null,null,"Regulatory and taxation environment",{"$f":"'Programme Management'!O48","v":"-"}]
[null,null,null,null,null,"Guidance ",{"$f":"'Programme Management'!O53","v":"-"}]
[null,null,null,"Programme analytics",null,"Monitoring and Evaluation Plan",{"$f":"'Programme Management'!O59","v":"-"}]
[null,null,null,null,null,"Data collection, analysis, management, and use",{"$f":"'Programme Management'!O67","v":"-"}]
[null,null,null,"Financing",null,"Budget support",{"$f":"'Programme Management'!O79","v":"-"}]
[null,null,null,null,null,"Market reliance on subsidy",{"$f":"'Programme Management'!O83","v":"-"}]
[null,null,null,null,null,"Market potential and growth",{"$f":"'Programme Management'!O85","v":"-"}]
[null,null,"Programme Implementation","Integration",null,"Condom promotion and distribution activities are integrated into other HIV prevention, family planning and sexual and reproductive health programs",{"$f":"'Programme Implementation'!O6","v":"-"}]
[null,null,null,"Demand",null,"Behavioural data used to inform demand creation activities",{"$f":"'Programme Implementation'!O11","v":"-"}]
[null,null,null,null,null,"Segmentation strategies",{"$f":"'Programme Implementation'!O12","v":"-"}]
[null,null,null,null,null,"Demand creation guidance",{"$f":"'Programme Implementation'!O15","v":"-"}]
[null,null,null,"Supply",null,"Quantification of universe of need",{"$f":"'Programme Implementation'!O19","v":"-"}]
[null,null,null,null,null,"Distribution factors in a Total Market Approach",{"$f":"'Programme Implementation'!O22","v":"-"}]
[null,null,null,null,null,"Multi-year procurement plan for condoms (RHSC plan)",{"$f":"'Programme Implementation'!O23","v":"-"}]
[null,null,null,null,null,"Quality of supply",{"$f":"'Programme Implementation'!O25","v":"-"}]
[null,null,null,null,null,"Guidance supporting distribution of free condoms",{"$f":"'Programme Implementation'!O28","v":"-"}]
[null,null,null,null,null,"Logistic management information system",{"$f":"'Programme Implementation'!O30","v":"-"}]
[null,null,null,null,null,"Perceived accessibility/condom availability",{"$f":"'Programme Implementation'!O31","v":"-"}]
[null,null,"Programme Outcomes","Outcomes and indicators",null,"At risk population exposure to demand creation activities/behavioural interventions",{"$f":"'Programme Outcomes '!O7","v":"-"}]
[null,null,null,null,null,"% of users that report condoms are available 'when and where I need them'",{"$f":"'Programme Outcomes '!O8","v":"-"}]
[null,null,null,null,null,"% of people who used condoms with a non-regular partner in the last 12 months\n (men; disaggregated by age)",{"$f":"'Programme Outcomes '!O9","v":"-"}]
[null,null,null,null,null,"% of people who used condoms with a non-regular partner in the last 12 months \n(women; disaggregated by age)",{"$f":"'Programme Outcomes '!O9","v":"-"}]
[null,null,null,null,null,"% of men who used a condom the last time they had anal sex with a non-regular male partner",{"$f":"'Programme Outcomes '!O10","v":"-"}]
[null,null,null,null,null,"% of sex workers who used a condom the last time they had sex with a client",{"$f":"'Programme Outcomes '!O11","v":"-"}]
[null,null,null,null,null,"% Condom use at last paid sexual intercourse (among men)",{"$f":"'Programme Outcomes '!O12","v":"-"}]
[null,null,null,null,null,"% Condom use during premarital sex (among men and women 15-24) of those that report premarital sex",{"$f":"'Programme Outcomes '!O13","v":"-"}]
[null,null,null,"Supplementary indicators",null,"Total number of condoms distributed during the reporting period, disaggregated by sector",{"$f":"'Programme Outcomes '!O16","v":"-"}]
[null,null,null,null,null,"Number of public sector sites reporting stock out of condoms in the past 12 months",{"$f":"'Programme Outcomes '!O17","v":"-"}]
[null,null,null,null,null,"Coverage: % of appropriate outlets (i.e., delivery points across sectors) that carry condoms",{"$f":"'Programme Outcomes '!O18","v":"-"}]
[null,null,null,null,null,"Equitable condom use",{"$f":"'Programme Outcomes '!O19","v":"-"}]
[null,null,null,"Sustainability indicators",null,null,{"$f":"IFERROR(ROUND(AVERAGE('Programme Management'!P6:P86),0),\"-\")","v":"-"}]
[null,null,null,"COVID-19 (and other pandemics) indicators",null,null,{"$f":"IF((SUM('Programme Management'!L57:N57)+SUM('Programme Implementation'!L8:N8)+SUM('Programme Implementation'!L9:N9))/3=0,\"-\", ROUND((SUM('Programme Management'!L57:N57)+SUM('Programme Implementation'!L8:N8)+SUM('Programme Implementation'!L9:N9))/3,0))","v":"-"}]
[]
[]
[null,null,null,null,null,null,null,null,null,{"$f":"COUNTIF(G3:G41,\"-\")","v":39}]
[null,null,null,null,null,null,null,null,null,{"$f":"COUNTIF(G3:G41,\">0\")","v":0}]
[null,null,null,null,null,null,null,null,"PSAT Completion",{"$f":"J45/(J44+J45)","v":0},{"$f":"1-J46","v":1}]

{"sheet":"Next steps","index":9,"n_rows":54,"n_cols":8,"rows_kept":54,"cut":false,"hidden":false,"merged":[[1,2,1,8],[11,2,11,3]]}
[]
[null,null,"Next Steps"]
[]
[null,null,null,null,null,"Element that needs to be addressed","Reason for low performance","Proposed actions (e.g. support required or corrective actions)"]
[null,null,null,null,1,{"$f":"IFERROR(INDEX('Summary of scores'!$F$1:$F$41,SMALL(IF('Summary of scores'!$G$1:$G$41<=$C$12,ROW('Summary of scores'!$G$1:$G$41)),ROW(3:3))),\"\")","v":""}]
[null,null,null,null,2,{"$f":"IFERROR(INDEX('Summary of scores'!$F$1:$F$41,SMALL(IF('Summary of scores'!$G$1:$G$41<=$C$12,ROW('Summary of scores'!$G$1:$G$41)),ROW(4:4))),\"\")","v":""}]
[null,null,null,null,3,{"$f":"IFERROR(INDEX('Summary of scores'!$F$1:$F$41,SMALL(IF('Summary of scores'!$G$1:$G$41<=$C$12,ROW('Summary of scores'!$G$1:$G$41)),ROW(5:5))),\"\")","v":""}]
[null,null,null,null,4,{"$f":"IFERROR(INDEX('Summary of scores'!$F$1:$F$41,SMALL(IF('Summary of scores'!$G$1:$G$41<=$C$12,ROW('Summary of scores'!$G$1:$G$41)),ROW(6:6))),\"\")","v":""}]
[null,null,null,null,5,{"$f":"IFERROR(INDEX('Summary of scores'!$F$1:$F$41,SMALL(IF('Summary of scores'!$G$1:$G$41<=$C$12,ROW('Summary of scores'!$G$1:$G$41)),ROW(7:7))),\"\")","v":""}]
[null,null,null,null,6,{"$f":"IFERROR(INDEX('Summary of scores'!$F$1:$F$41,SMALL(IF('Summary of scores'!$G$1:$G$41<=$C$12,ROW('Summary of scores'!$G$1:$G$41)),ROW(8:8))),\"\")","v":""}]
[null,null,null,null,7,{"$f":"IFERROR(INDEX('Summary of scores'!$F$1:$F$41,SMALL(IF('Summary of scores'!$G$1:$G$41<=$C$12,ROW('Summary of scores'!$G$1:$G$41)),ROW(9:9))),\"\")","v":""}]
[null,null,5,null,8,{"$f":"IFERROR(INDEX('Summary of scores'!$F$1:$F$41,SMALL(IF('Summary of scores'!$G$1:$G$41<=$C$12,ROW('Summary of scores'!$G$1:$G$41)),ROW(10:10))),\"\")","v":""}]
[null,null,null,null,9,{"$f":"IFERROR(INDEX('Summary of scores'!$F$1:$F$41,SMALL(IF('Summary of scores'!$G$1:$G$41<=$C$12,ROW('Summary of scores'!$G$1:$G$41)),ROW(11:11))),\"\")","v":""}]
[null,null,null,null,10,{"$f":"IFERROR(INDEX('Summary of scores'!$F$1:$F$41,SMALL(IF('Summary of scores'!$G$1:$G$41<=$C$12,ROW('Summary of scores'!$G$1:$G$41)),ROW(12:12))),\"\")","v":""}]
[null,null,null,null,11,{"$f":"IFERROR(INDEX('Summary of scores'!$F$1:$F$41,SMALL(IF('Summary of scores'!$G$1:$G$41<=$C$12,ROW('Summary of scores'!$G$1:$G$41)),ROW(13:13))),\"\")","v":""}]
[null,null,null,null,12,{"$f":"IFERROR(INDEX('Summary of scores'!$F$1:$F$41,SMALL(IF('Summary of scores'!$G$1:$G$41<=$C$12,ROW('Summary of scores'!$G$1:$G$41)),ROW(14:14))),\"\")","v":""}]
[null,null,null,null,13,{"$f":"IFERROR(INDEX('Summary of scores'!$F$1:$F$41,SMALL(IF('Summary of scores'!$G$1:$G$41<=$C$12,ROW('Summary of scores'!$G$1:$G$41)),ROW(15:15))),\"\")","v":""}]
[null,null,null,null,14,{"$f":"IFERROR(INDEX('Summary of scores'!$F$1:$F$41,SMALL(IF('Summary of scores'!$G$1:$G$41<=$C$12,ROW('Summary of scores'!$G$1:$G$41)),ROW(16:16))),\"\")","v":""}]
[null,null,null,null,15,{"$f":"IFERROR(INDEX('Summary of scores'!$F$1:$F$41,SMALL(IF('Summary of scores'!$G$1:$G$41<=$C$12,ROW('Summary of scores'!$G$1:$G$41)),ROW(17:17))),\"\")","v":""}]
[null,null,null,null,16,{"$f":"IFERROR(INDEX('Summary of scores'!$F$1:$F$41,SMALL(IF('Summary of scores'!$G$1:$G$41<=$C$12,ROW('Summary of scores'!$G$1:$G$41)),ROW(18:18))),\"\")","v":""}]
[null,null,null,null,17,{"$f":"IFERROR(INDEX('Summary of scores'!$F$1:$F$41,SMALL(IF('Summary of scores'!$G$1:$G$41<=$C$12,ROW('Summary of scores'!$G$1:$G$41)),ROW(19:19))),\"\")","v":""}]
[null,null,null,null,18,{"$f":"IFERROR(INDEX('Summary of scores'!$F$1:$F$41,SMALL(IF('Summary of scores'!$G$1:$G$41<=$C$12,ROW('Summary of scores'!$G$1:$G$41)),ROW(20:20))),\"\")","v":""}]
[null,null,null,null,19,{"$f":"IFERROR(INDEX('Summary of scores'!$F$1:$F$41,SMALL(IF('Summary of scores'!$G$1:$G$41<=$C$12,ROW('Summary of scores'!$G$1:$G$41)),ROW(21:21))),\"\")","v":""}]
[null,null,null,null,20,{"$f":"IFERROR(INDEX('Summary of scores'!$F$1:$F$41,SMALL(IF('Summary of scores'!$G$1:$G$41<=$C$12,ROW('Summary of scores'!$G$1:$G$41)),ROW(22:22))),\"\")","v":""}]
[null,null,null,null,21,{"$f":"IFERROR(INDEX('Summary of scores'!$F$1:$F$41,SMALL(IF('Summary of scores'!$G$1:$G$41<=$C$12,ROW('Summary of scores'!$G$1:$G$41)),ROW(23:23))),\"\")","v":""}]
[null,null,null,null,22,{"$f":"IFERROR(INDEX('Summary of scores'!$F$1:$F$41,SMALL(IF('Summary of scores'!$G$1:$G$41<=$C$12,ROW('Summary of scores'!$G$1:$G$41)),ROW(24:24))),\"\")","v":""}]
[null,null,null,null,23,{"$f":"IFERROR(INDEX('Summary of scores'!$F$1:$F$41,SMALL(IF('Summary of scores'!$G$1:$G$41<=$C$12,ROW('Summary of scores'!$G$1:$G$41)),ROW(25:25))),\"\")","v":""}]
[null,null,null,null,24,{"$f":"IFERROR(INDEX('Summary of scores'!$F$1:$F$41,SMALL(IF('Summary of scores'!$G$1:$G$41<=$C$12,ROW('Summary of scores'!$G$1:$G$41)),ROW(26:26))),\"\")","v":""}]
[null,null,null,null,25,{"$f":"IFERROR(INDEX('Summary of scores'!$F$1:$F$41,SMALL(IF('Summary of scores'!$G$1:$G$41<=$C$12,ROW('Summary of scores'!$G$1:$G$41)),ROW(27:27))),\"\")","v":""}]
[null,null,null,null,26,{"$f":"IFERROR(INDEX('Summary of scores'!$F$1:$F$41,SMALL(IF('Summary of scores'!$G$1:$G$41<=$C$12,ROW('Summary of scores'!$G$1:$G$41)),ROW(28:28))),\"\")","v":""}]
[null,null,null,null,27,{"$f":"IFERROR(INDEX('Summary of scores'!$F$1:$F$41,SMALL(IF('Summary of scores'!$G$1:$G$41<=$C$12,ROW('Summary of scores'!$G$1:$G$41)),ROW(29:29))),\"\")","v":""}]
[null,null,null,null,28,{"$f":"IFERROR(INDEX('Summary of scores'!$F$1:$F$41,SMALL(IF('Summary of scores'!$G$1:$G$41<=$C$12,ROW('Summary of scores'!$G$1:$G$41)),ROW(30:30))),\"\")","v":""}]
[null,null,null,null,29,{"$f":"IFERROR(INDEX('Summary of scores'!$F$1:$F$41,SMALL(IF('Summary of scores'!$G$1:$G$41<=$C$12,ROW('Summary of scores'!$G$1:$G$41)),ROW(31:31))),\"\")","v":""}]
[null,null,null,null,30,{"$f":"IFERROR(INDEX('Summary of scores'!$F$1:$F$41,SMALL(IF('Summary of scores'!$G$1:$G$41<=$C$12,ROW('Summary of scores'!$G$1:$G$41)),ROW(32:32))),\"\")","v":""}]
[null,null,null,null,31,{"$f":"IFERROR(INDEX('Summary of scores'!$F$1:$F$41,SMALL(IF('Summary of scores'!$G$1:$G$41<=$C$12,ROW('Summary of scores'!$G$1:$G$41)),ROW(33:33))),\"\")","v":""}]
[null,null,null,null,32,{"$f":"IFERROR(INDEX('Summary of scores'!$F$1:$F$41,SMALL(IF('Summary of scores'!$G$1:$G$41<=$C$12,ROW('Summary of scores'!$G$1:$G$41)),ROW(34:34))),\"\")","v":""}]
[null,null,null,null,33,{"$f":"IFERROR(INDEX('Summary of scores'!$F$1:$F$41,SMALL(IF('Summary of scores'!$G$1:$G$41<=$C$12,ROW('Summary of scores'!$G$1:$G$41)),ROW(35:35))),\"\")","v":""}]
[null,null,null,null,34,{"$f":"IFERROR(INDEX('Summary of scores'!$F$1:$F$41,SMALL(IF('Summary of scores'!$G$1:$G$41<=$C$12,ROW('Summary of scores'!$G$1:$G$41)),ROW(36:36))),\"\")","v":""}]
[null,null,null,null,35,{"$f":"IFERROR(INDEX('Summary of scores'!$F$1:$F$41,SMALL(IF('Summary of scores'!$G$1:$G$41<=$C$12,ROW('Summary of scores'!$G$1:$G$41)),ROW(37:37))),\"\")","v":""}]
[null,null,null,null,36,{"$f":"IFERROR(INDEX('Summary of scores'!$F$1:$F$41,SMALL(IF('Summary of scores'!$G$1:$G$41<=$C$12,ROW('Summary of scores'!$G$1:$G$41)),ROW(38:38))),\"\")","v":""}]
[null,null,null,null,37,{"$f":"IFERROR(INDEX('Summary of scores'!$F$1:$F$41,SMALL(IF('Summary of scores'!$G$1:$G$41<=$C$12,ROW('Summary of scores'!$G$1:$G$41)),ROW(39:39))),\"\")","v":""}]
[null,null,null,null,38,{"$f":"IFERROR(INDEX('Summary of scores'!$F$1:$F$41,SMALL(IF('Summary of scores'!$G$1:$G$41<=$C$12,ROW('Summary of scores'!$G$1:$G$41)),ROW(40:40))),\"\")","v":""}]
[null,null,null,null,39,{"$f":"IFERROR(INDEX('Summary of scores'!$F$1:$F$41,SMALL(IF('Summary of scores'!$G$1:$G$41<=$C$12,ROW('Summary of scores'!$G$1:$G$41)),ROW(41:41))),\"\")","v":""}]
[null,null,null,null,40,{"$f":"IFERROR(INDEX('Summary of scores'!$F$1:$F$41,SMALL(IF('Summary of scores'!$G$1:$G$41<=$C$12,ROW('Summary of scores'!$G$1:$G$41)),ROW(42:42))),\"\")","v":""}]
[null,null,null,null,41,{"$f":"IFERROR(INDEX('Summary of scores'!$F$1:$F$41,SMALL(IF('Summary of scores'!$G$1:$G$41<=$C$12,ROW('Summary of scores'!$G$1:$G$41)),ROW(43:43))),\"\")","v":""}]
[null,null,null,null,42,{"$f":"IFERROR(INDEX('Summary of scores'!$F$1:$F$41,SMALL(IF('Summary of scores'!$G$1:$G$41<=$C$12,ROW('Summary of scores'!$G$1:$G$41)),ROW(44:44))),\"\")","v":""}]
[null,null,null,null,43,{"$f":"IFERROR(INDEX('Summary of scores'!$F$1:$F$41,SMALL(IF('Summary of scores'!$G$1:$G$41<=$C$12,ROW('Summary of scores'!$G$1:$G$41)),ROW(45:45))),\"\")","v":""}]
[null,null,null,null,44,{"$f":"IFERROR(INDEX('Summary of scores'!$F$1:$F$41,SMALL(IF('Summary of scores'!$G$1:$G$41<=$C$12,ROW('Summary of scores'!$G$1:$G$41)),ROW(46:46))),\"\")","v":""}]
[null,null,null,null,45,{"$f":"IFERROR(INDEX('Summary of scores'!$F$1:$F$41,SMALL(IF('Summary of scores'!$G$1:$G$41<=$C$12,ROW('Summary of scores'!$G$1:$G$41)),ROW(47:47))),\"\")","v":""}]
[null,null,null,null,46,{"$f":"IFERROR(INDEX('Summary of scores'!$F$1:$F$41,SMALL(IF('Summary of scores'!$G$1:$G$41<=$C$12,ROW('Summary of scores'!$G$1:$G$41)),ROW(48:48))),\"\")","v":""}]
[null,null,null,null,47,{"$f":"IFERROR(INDEX('Summary of scores'!$F$1:$F$41,SMALL(IF('Summary of scores'!$G$1:$G$41<=$C$12,ROW('Summary of scores'!$G$1:$G$41)),ROW(49:49))),\"\")","v":""}]
[null,null,null,null,48,{"$f":"IFERROR(INDEX('Summary of scores'!$F$1:$F$41,SMALL(IF('Summary of scores'!$G$1:$G$41<=$C$12,ROW('Summary of scores'!$G$1:$G$41)),ROW(51:51))),\"\")","v":""}]
[null,null,null,null,49,{"$f":"IFERROR(INDEX('Summary of scores'!$F$1:$F$41,SMALL(IF('Summary of scores'!$G$1:$G$41<=$C$12,ROW('Summary of scores'!$G$1:$G$41)),ROW(#REF!))),\"\")","v":""}]
[null,null,null,null,50]

{"sheet":"Bibliography","index":10,"n_rows":41,"n_cols":4,"rows_kept":41,"cut":false,"hidden":false,"merged":[[1,2,1,3]]}
[]
[null,null,"Bibliography"]
[null,null,1," A Total Market Approach. PSI/UNFPA Joint Studies on the Total Market for Male Condoms in Six African Countries: Botswana, Pallin, S.C., D. Meekers, O. Lupu, K. Longfield, 2013"]
[null,null,2,"A Total Market Approach. PSI/UNFPA Joint Studies on the Total Market for Male Condoms in 6 African Countries: Uganda, Pallin, S.C., D. Meekers, O. Lupu, K. Longfield., 2013"]
[null,null,3,"A Total Market Approach. PSI/UNFPA Joint Studies on the Total Market for Male Condoms in Six African Countries: South Africa, Pallin, S.C., D. Meekers, O. Lupu, K. Longfield., 2013"]
[null,null,4,"A Total Market Approach. PSI/UNFPA Joint Studies on the Total Market for Male Condoms in Six African Countries: Swaziland, Pallin, S.C., D. Meekers, O. Lupu, K. Longfield., 2013"]
[null,null,5,"Challenges and Recommendations for reaching Fast-Track targets for condom use, UNAIDS, 2019"]
[null,null,6,"Comprehensive Condom Programming: A guide to resource mobilization and country programming, UNFPA, 2010"]
[null,null,7,"Comprehensive Condom Programming: A guide for resource mobilization and country programming, UNFPA, 2010"]
[null,null,8,"Condom and lubricant programming in high HIV prevalence countries, UNAIDS, 2014"]
[null,null,9,"Condom Market Landscaping Case Study: Botswana, Mann Global Health, 2017"]
[null,null,10,"Condom Market Landscaping Case Study: Kenya, Mann Global Health, 2017"]
[null,null,11,"Condom Market Landscaping Case Study: Tanzania, Mann Global Health, 2017"]
[null,null,12,"Condom Market Landscaping Case Study: Zambia, Mann Global Health, 2017"]
[null,null,13,"Condom Market Landscaping Case Study: Zimbabwe, Mann Global Health, 2017"]
[null,null,14,"Condom Needs and Resource Requirement  Estimation Tool, UNFPA 2019"]
[null,null,15,"Donor Trends Condom Landscape Analysis, Mann Global Health, 2019"]
[null,null,16,"Handbook for Research on the Family Planning Market. Volume 1: Using Data to Inform a Total Market Approach to Family Planning. Chapel Hill, NC: MEASURE Evaluation, University of North Carolina, Meekers, Dominique, Sarah C. Haynes, and Kathryn Kampa, 2016"]
[null,null,17,"Handbook for Research on the Family Planning Market. Volume 2: Tools and Resources for an In-Depth Analysis of the Family Planning Market. Chapel Hill, NC: MEASURE Evaluation, University of North Carolina, Meekers, Dominique, Sarah C. Haynes, and Kathryn Kampa, 2016"]
[null,null,18,"Handbook for Research on the Family Planning Market: Using Data to Inform a Total Market Approach.  Presented at the meeting of the USAID/UNFPA TMA Working Group, D. Meekers, Washington DC, July 26, 2016"]
[null,null,19,"Joint United Nations Programme on HIV/AIDS. (2020). Maintaining and prioritizing HIV prevention services in the time of COVID-19"]
[null,null,20,"Joint United Nations Programme on HIV/AIDS. (2020). Condoms and lubricants in the time of COVID-19. Sustaining supplies and people-centred approaches to meet the need in low- and middle-income countries"]
[null,null,21,"Joint United Nations Programme on HIV/AIDS. (2020). UNAIDS highlights six critical actions to put gender equality at the centre of COVID-19 responses"]
[null,null,22,"Joint United Nations Programme on HIV/AIDS. (2020). Strategic Considerations for Mitigating the Impact of COVID-19 on Key-Population-Focused HIV Programs"]
[null,null,23,"Joint United Nations Programme on HIV/AIDS. (2020). Preventing HIV and other STIs among women and girls using contraceptive services in contexts with high HIV incidence"]
[null,null,24,"Joint United Nations Programme on HIV/AIDS. (2021). Going Online: A Budgeting and Programming Aid for Virtual HIV Interventions"]
[null,null,25,"Market Development Approaches Working Group: Market Segmentation Primer, USAID, 2009"]
[null,null,26,"Planning Guide for a Total Market Approach to Increase Access to Family Planning. Module 1: Landscape Assessment. Seattle, WA: PATH and Washington, DC: The Population Council, Evidence Project, Brady C, Weeden L, Hutchings J., Parks, J, 2016"]
[null,null,27,"Planning Guide for a Total Market Approach to Increase Access to Family Planning. Planning Toolkit. Seattle, WA: PATH and Washington, DC: The Population Council, Evidence Project, Brady C, Weeden L, Hutchings J., Parks, J, 2016"]
[null,null,28,"Rapid assessment checklist: Analysis of plans & systems for delivering effective HIV prevention, UNSAIDS, 2018"]
[null,null,29,"Rapid Needs Assessment Tool for Condom Programming, UNFPA, 2003"]
[null,null,30,"Reinvigorating Condoms as an HIV Prevention Tool. USAID, Jafa, K. et al., 2012"]
[null,null,31,"Resources supporting the UNFPA 20 by 20 meeting, Bangkok (2018), unpublished"]
[null,null,32,"The Condom Program Pathway, Mann Global Health, 2017"]
[null,null,33,"The Condom Push, UNAIDS & UNFPA, 2015"]
[null,null,34,"The role of social marketing organizations in strengthening the commercial sector: case studies for male condoms in Myanmar and Vietnam. Cases in Public Health Communication & Marketing, Longfield K, Ayers J, Han WH, Neukom J, Lupu O, Walker D.  2014;8(suppl 1):S42-S63"]
[null,null,35,"Total Market Approach Stewardship Capacity Assessment Report, Reproductive Health Supplies Coalition, 2015"]
[null,null,36,"Total Market Initiatives for Reproductive Health. Bethesda, MD: Strengthening Health Outcomes through the Private Sector Project, Abt Associates, Barnes, Jeffrey, Janet Vail, and Dawn Crosby, 2012"]
[null,null,37,"Towards the standardization of Total Market Approach indicators for male condoms. Cases in Public Health Communication & Marketing, Pallin SC, Meekers D, 2014;8(suppl 1):S86-S103"]
[null,null,38,"Using Total Market Approaches in Condom Programs. Bethesda, MD: Strengthening Health Outcomes through the Private Sector Project, Abt Associates. Barnes, J.F. Armand, S. Callahan, and C. Revuz, 2015 "]
[null,null,39,"Zimbabwe Mass drug administration Strategy: Full Analysis, unpublished"]

{"sheet":"Acronyms","index":11,"n_rows":25,"n_cols":4,"rows_kept":25,"cut":false,"hidden":false,"merged":[[1,2,1,3]]}
[]
[null,null,"Acronyms"]
[null,null,"FP","Family planning"]
[null,null,"FMCG","Fast-moving consumer good "]
[null,null,"FSW","Female sex worker"]
[null,null,"KP","Key populations"]
[null,null,"LoE","Level of effort"]
[null,null,"LMIS","Logistic management information systems "]
[null,null,"M/F","Male/Female"]
[null,null,"MSM","Men who have sex with men "]
[null,null,"MOH","Ministry of health "]
[null,null,"M&E framework","Monitoring and evaluation framework "]
[null,null,"NGO","Non-governmental organisations"]
[null,null,"PP","Priority populations"]
[null,null,"SW","Sex worker"]
[null,null,"SRH","Sexual reproductive health "]
[null,null,"SMers ","Social marketers"]
[null,null,"SM","Social marketing"]
[null,null,"SM","Sustainable condom market/sustainable market "]
[null,null,"TOC","Theory of change"]
[null,null,"TMA","Total market analysis"]
[null,null,"C-NET","UNAIDS Condom Needs and Resources Estimation Tool"]
[null,null,"U/R","Urban/Rural"]
[null,null,"VAT","Value added tax"]
[null,null,"TWG","Working group/technical working group "]